Workbook

Sheet A. NAVIDEÑO
B1: FICHA PLAN DE ACCION POR PROCESOS - FPAP - VIGENCIA 2014
B2: MUNICIPIO DE IBAGUÉ
B3: FICHA DE PROGRAMACION Y SEGUIMIENTO
B4: SECRETARÍA / ENTIDAD: INFIBAGUE / GRUPO: DIVISION OPERATIVA Y GESTION AMBIENTAL
B5: FECHA DE PROGRAMACION: NOVIEMBRE DE 2013 | C5: FECHA DE SEGUIMIENTO: | G5: 2014-08-06 | M5: JULIO - 2014 -
B7: MACROPROCESO: ALUMBRADO NAVIDEÑO | E7: PROCESO: ALUMBRADO NAVIDEÑO
B8: SEGURIDAD: SEGURIDAD AMBIENTAL Y DEL ENTORNO | H8: Objetivos: Proporcionar a ciudadanos y turistas una iluminación Decembrina, realizada con eficiencia, creatividad y armonía para engalanar la ciudad con figuras navideñas que cumplan con altos estándares de calidad y competitividad en aras de obtener reconocimiento nacional. | K8: RELACION DE CONTRATOS Y CONVENIOS
B9: PROGRAMA: RECUPERACIÓN, CONSTRUCCIÓN Y ARTICULACIÓN DEL SISTEMA DE ESPACIO PÚBLICO MUNICIPAL | K9: No | L9: OBJETO | O9: VALOR
B10: NOMBRE DEL PROYECTO POAI: ALUMBRADO NAVIDEÑO
B11: DEPENDENCIA / GRUPO: DIVISION OPERATIVA Y GESTION AMBIENTAL
B12: CODIGO BPPIM:
B13: CODIGO PRESUPUESTAL: RUBRO:
B14: PRINCIPALES ACTIVIDADES | C14: PROG EJEC | D14: UNIDAD DE MEDIDA | E14: CANT. | F14: COSTO TOTAL ( MILES DE PESOS) | G14: FUENTES DE FINANCIACION ( EN MILES DE $) | K14: PROGRAMACION (dd/mm/aa) | M14: INDICADORES DE GESTION
M15: INDICE FISICO | N15: INDICE INVERSION | O15: EFICIENCIA
G16: MPIO | H16: SGP | I16: REGALIAS | J16: OTROS | K16: INICIO | L16: TERMINACION
B17: 1. Construir e instalar Figuras navideñas Nuevas | C17: P | D17: UNIDAD | E17: 300 | F17: 65,000 | G17: X | K17: 2014-05-01 | L17: 2014-12-31 | M17: =+E18/E17*100 -> 0.00 | N17: =+F21/F17*100 -> 0.00 | O17: =+(M17+N17)/2 -> 0.00
C18: E
B19: 2. Restaurar Figuras Navideñas | C19: P | D19: UNIDAD | E19: 400 | G19: X | K19: 2014-05-01 | L19: 2014-12-31 | M19: =+E20/E19*100 -> 0.00 | N19: =+F21/F17*100 -> 0.00 | O19: =+(M19+N19)/2 -> 0.00
C20: E
B21: 3. Iluminar con Alumbrado Navideño Sitios Estratégicos de la Ciudad (Parque Murillo Toro, Plaza de Bolivar, Parque de la Música, Eje Cultural de la 10, Kra 5ª y Kra 3ª) | C21: P | D21: UNIDAD | E21: 7 | G21: X | K21: 2014-11-01 | L21: 2014-12-31 | M21: =+E22/E21*100 -> 0.00 | N21: =+F21/F17*100 -> 0.00 | O21: =+(M21+N21)/2 -> 0.00
C22: E
B23: 4. Elaboración de Apliques para diferentes Barrios de la Ciudad | C23: P | D23: UNIDAD | E23: 100 | G23: X | K23: 2014-05-01 | L23: 2014-12-31 | M23: =+E24/E23*100 -> 0.00 | N23: =+F21/F17*100 -> 0.00 | O23: =+(M23+N23)/2 -> 0.00
C24: E
B25: 5. Comercialización de Alumbrado Navideño en diferentes Municipios. | C25: P | D25: UNIDAD | E25: 3 | F25: GESTION | K25: 2014-05-01 | L25: 2014-12-31 | M25: =+E26/E25*100 -> 0.00 | O25: =M25 -> 0.00
C26: E
B27: TOTAL PLAN DE ACCION | C27: P | F27: =F17 -> 65,000 | M27: =AVERAGE(M17:M26) -> 0.00 | N27: =AVERAGE(N17:N24) -> 0.00 | O27: =+(M27+N27)/2 -> 0.00
C28: E
B30: METAS DE RESULTADO | C30: METAS DE PRODUCTO | F30: INDICADORES | K30: SECRETARIO DESPACHO / GERENTE
B31: META DE RESULTADO No. 1: Embellecer el Espacio Público con un Alumbrado Navideño Anual | C31: META DE PRODUCTO No. 1: Construir e instalar 300 Figuras navideñas Nuevas | F31: No. De Figuras Navideñas Construidas e Instaladas | I31: P | J31: 300.0 | K31: NOMBRE: Piedad Consuelo Franco Rios
I32: E
C33: META DE PRODUCTO No. 2: Restaurar 400 Figuras Navideñas | F33: No. De Figuras Navideñas Restauradas | I33: P | J33: 400.0 | K33: FIRMA
I34: E
C35: META DE PRODUCTO No. 3: Comercializar el Alumbrado Navideño en 3 Municipios | F35: No. De Municipios Atendidos | I35: P | J35: 3.0 | K35: NOMBRE JEFE GRUPO: Julio Cesar Rodriguez Acosta
I36: E
B37: OBSERVACIONES: | K37: FIRMA

Sheet A. PÚBLICO
B1: FICHA PLAN DE ACCION POR PROCESOS - FPAP - VIGENCIA 2014
B2: MUNICIPIO DE IBAGUÉ
B3: FICHA DE PROGRAMACION Y SEGUIMIENTO
B4: SECRETARÍA / ENTIDAD: INFIBAGUE / GRUPO: DIVISION OPERATIVA Y GESTION AMBIENTAL
B5: FECHA DE PROGRAMACION: NOVIEMBRE DE 2013 | C5: FECHA DE SEGUIMIENTO: | G5: 2014-08-06 | M5: JULIO - 2014 -
B7: MACROPROCESO: ALUMBRADO PÚBLICO | E7: PROCESO: ALUMBRADO PÚBLICO
B8: SEGURIDAD: SEGURIDAD PERSONAL Y DE LA COMUNIDAD | H8: Objetivos: Propender por la seguridad, el bienestar de la comunidad, en las vías y zonas públicas, en horas de la noche, en la ciudad de Ibagué, por medio de la realización del mantenimiento, modernización y ampliación de cobertura del sistema de Alumbrado Público. | K8: RELACION DE CONTRATOS Y CONVENIOS
B9: PROGRAMA: SEGURIDAD VIAL | K9: No | L9: OBJETO | O9: VALOR
B10: NOMBRE DEL PROYECTO POAI: ALUMBRADO PÚBLICO
B11: DEPENDENCIA / GRUPO: DIVISION OPERATIVA Y GESTION AMBIENTAL
B12: CODIGO BPPIM:
B13: CODIGO PRESUPUESTAL: RUBRO:
B14: PRINCIPALES ACTIVIDADES | C14: PROG EJEC | D14: UNIDAD DE MEDIDA | E14: CANT. | F14: COSTO TOTAL ( MILES DE PESOS) | G14: FUENTES DE FINANCIACION ( EN MILES DE $) | K14: PROGRAMACION (dd/mm/aa) | M14: INDICADORES DE GESTION
M15: INDICE FISICO | N15: INDICE INVERSION | O15: EFICIENCIA
G16: MPIO | H16: SGP | I16: REGALIAS | J16: OTROS | K16: INICIO | L16: TERMINACION
B17: 1. Atender Solicitudes para realizar Mantenimiento al Sistema de Alumbrado Público | C17: P | D17: UNIDAD | E17: 11,000 | F17: =(649290+858414) -> 1,507,704 | G17: x | K17: 2014-01-02 | L17: 2014-12-31 | M17: =+E18/E17*100 -> 52.03 | N17: =+F18/F17*100 -> 48.75 | O17: =+(M17+N17)/2 -> 50.39
C18: E | E18: =(780+687+860+864+922+761+849) -> 5,723 | F18: =(21842+9672)+(22041+27938)+(20719)+(26696+11390)+(50499+374300)+(38157)+(20370+111351) -> 734,975
B19: 2. Modernizaciones realizadas en el Sistema de Alumbrado Público | C19: P | D19: UNIDAD | E19: 1,500 | F19: =(700000+429207) -> 1,129,207 | G19: x | K19: 2014-01-02 | L19: 2014-12-31 | M19: =+E20/E19*100 -> 48.80 | N19: =+F20/F19*100 -> 42.48 | O19: =+(M19+N19)/2 -> 45.64
C20: E | E20: =(30+250+199+226+5+4+18) -> 732 | F20: =(7698+4835)+(60836+13969)+(46547+21967)+(48853)+(187150+25249+1229)+(19078)+(5159+37117) -> 479,687
B21: 3. Ampliación de Cobertura al Sistema de Alumbrado Público | C21: P | D21: Km | E21: 5 | F21: =(570000+429207) -> 999,207 | G21: x | K21: 2014-01-02 | L21: 2014-12-31 | M21: =+E22/E21*100 -> 30.60 | N21: =+F22/F21*100 -> 28.23 | O21: =+(M21+N21)/2 -> 29.41
C22: E | E22: =(0.03+0.33+0.09+0.93+0.12+0.03) -> 1.53 | F22: =(332+4835)+(3653+13969)+(996+21967)+(4318)+(187150+25249+490)+(19078) -> 282,037
C23: P
C24: E
C25: P
C26: E
B27: TOTAL PLAN DE ACCION | C27: P | F27: =F17+F19+F21 -> 3,636,118 | M27: =AVERAGE(M17:M22) -> 43.81 | N27: =AVERAGE(N17:N22) -> 39.82 | O27: =+(M27+N27)/2 -> 41.81
C28: E | F28: =F18+F20+F22 -> 1,496,699
B30: METAS DE RESULTADO | C30: METAS DE PRODUCTO | F30: INDICADORES | K30: SECRETARIO DESPACHO / GERENTE
B31: META DE RESULTADO No. 1: Formular el Plan Maestro de Alumbrado Público y adelantar las acciones de corto plazo que se determinen | C31: META DE PRODUCTO No. 1: Atender 11.000 Solicitudes de Mantenimiento al Alumbrado Público | F31: No. De Solicitudes Atendidas | I31: P | J31: 11,000 | K31: NOMBRE: Piedad Consuelo Franco Rios
I32: E | J32: =E18 -> 5,723
C33: META DE PRODUCTO No. 2: Instalar 2.500 Luminarias Nuevas | F33: No. De Luminarias Nuevas Instaladas | I33: P | J33: 1,500 | K33: FIRMA
I34: E | J34: =E20 -> 732
C35: META DE PRODUCTO No. 3: Ampliar en 6 Km la Cobertura del Alumbrado Público | F35: No. De Km Ampliados | I35: P | J35: 5 | K35: NOMBRE JEFE GRUPO: Luis Enrique Ascencio Camacho
I36: E
B37: OBSERVACIONES: SE INCLUYE COSTO MANO DE OBRA | K37: FIRMA
E43: 777

Sheet PLAZAS
B1: FICHA PLAN DE ACCION POR PROCESOS - FPAP - VIGENCIA 2014
B2: MUNICIPIO DE IBAGUÉ
B3: FICHA DE PROGRAMACION Y SEGUIMIENTO
B4: SECRETARÍA / ENTIDAD: INFIBAGUE / GRUPO: DIVISION OPERATIVA Y GESTION AMBIENTAL
B5: FECHA DE PROGRAMACION: NOVIEMBRE DE 2013 | C5: FECHA DE SEGUIMIENTO: | G5: 2014-08-06 | M5: JULIO - 2014 -
B7: MACROPROCESO: PLAZAS DE MERCADO | E7: PROCESO: PLAZAS DE MERCADO
B8: SEGURIDAD: SEGURIDAD AMBIENTAL Y DEL ENTORNO | H8: Objetivos: Realizar mantenimiento correctivo y preventivo para el buen funcionamiento de las 4 plazas de mercado. 2. Recuperar el espacio público en las 4 plazas de mercado. 3. Reducir el número de puestos de mercado que se encuentran en provisionalidad. 4. Recuperar cartera por concepto de arriendo de puestos en las plazas de mercado | K8: RELACION DE CONTRATOS Y CONVENIOS
B9: PROGRAMA: RENOVACION E INFRAESTRUCTURA URBANA | K9: No | L9: OBJETO | O9: VALOR
B10: NOMBRE DEL PROYECTO POAI: PLAZAS DE MERCADO
B11: DEPENDENCIA / GRUPO: DIVISION OPERATIVA Y GESTION AMBIENTAL
B12: CODIGO BPPIM:
B13: CODIGO PRESUPUESTAL: RUBRO:
B14: PRINCIPALES ACTIVIDADES | C14: PROG EJEC | D14: UNIDAD DE MEDIDA | E14: CANT. | F14: COSTO TOTAL ( MILES DE PESOS) | G14: FUENTES DE FINANCIACION ( EN MILES DE $) | K14: PROGRAMACION (dd/mm/aa) | M14: INDICADORES DE GESTION
M15: INDICE FISICO | N15: INDICE INVERSION | O15: EFICIENCIA
G16: MPIO | H16: SGP | I16: REGALIAS | J16: OTROS | K16: INICIO | L16: TERMINACION
B17: 1. Pintura Interna y Externa de las 4 Plazas de Mercado | C17: P | D17: UNIDAD | E17: 4 | F17: 10,000 | G17: X | K17: 2014-01-02 | L17: 2014-12-31 | M17: =+E18/E17*100 -> 75.00 | N17: =+F18/F17*100 -> 57.00 | O17: =+(M17+N17)/2 -> 66.00
C18: E | E18: =1+1+1 -> 3 | F18: =2000+1700+1500+500 -> 5,700
B19: 2. Disminuir en 30 el número de puestos en provisionalidad de las 4 Plazas de Mercado | C19: P | D19: UNIDAD | E19: 30 | F19: GESTION | G19: X | K19: 2014-01-02 | L19: 2014-12-31 | M19: =+E20/E19*100 -> 53.33 | O19: =M19 -> 53.33
C20: E | E20: =7+3+4+2 -> 16
B21: 3. Recuperación de Cartera (60 Millones) | C21: P | D21: MILLONES | E21: 60 | F21: GESTION | G21: X | K21: 2014-01-02 | L21: 2014-12-31 | M21: =+E22/E21*100 -> 101.67 | O21: =M21 -> 101.67
C22: E | E22: =36+25 -> 61
B23: 4. Mantenimiento y recuperación estructural de las 4 Plazas de Mercado | C23: P | D23: UNIDAD | E23: 4 | F23: 67,000 | G23: X | K23: 2014-01-02 | L23: 2014-12-31 | M23: =+E24/E23*100 -> 100.00 | N23: =+F24/F23*100 -> 8.88 | O23: =+(M23+N23)/2 -> 54.44
C24: E | E24: =1+1+1+1 -> 4 | F24: =1000+800+300+750+3000+100 -> 5,950
B25: 5. Recuperación ornamental de las 4 Plazas de Mercado | C25: P | D25: UNIDAD | E25: 4 | F25: 3,000 | G25: X | K25: 2014-01-02 | L25: 2014-12-31 | M25: =+E26/E25*100 -> 100.00 | N25: =+F26/F25*100 -> 150.00 | O25: =+(M25+N25)/2 -> 125.00
C26: E | E26: =1+1+1+1 -> 4 | F26: =1500+800+600+300+1000+300 -> 4,500
B27: 6. Implementación del proyecto de Manejo de Residuos Sólidos en las 4 Plazas de Mercado | C27: P | D27: UNIDAD | E27: 1 | F27: GESTION | G27: X | K27: 2014-01-02 | L27: 2014-12-31 | M27: =+E28/E27*100 -> 0.00 | O27: =M27 -> 0.00
C28: E
B29: TOTAL PLAN DE ACCION | C29: P | F29: =+(F17+F23+F25) -> 80,000 | M29: =AVERAGE(M17:M28) -> 71.67 | N29: =AVERAGE(M29,N17,N23,N25) -> 71.89 | O29: =+(M29+N29)/2 -> 71.78
C30: E | F30: =F18+F24+F26 -> 16,150
B32: METAS DE RESULTADO | C32: METAS DE PRODUCTO | F32: INDICADORES | K32: SECRETARIO DESPACHO / GERENTE
B33: META DE RESULTADO No. 1: Recuperación, Mantenimiento y Fortalecimiento de las 4 Plazas de Mercado | C33: META DE PRODUCTO No. 1: Realizar un Mantenimiento Anual a las Fachadas internas y externas de cada una de las 4 Plazas | F33: No. De Plazas de Mercado pintadas y recuperadas interna y externamente | I33: P | J33: 4 | K33: NOMBRE: Piedad Consuelo Franco Rios
I34: E | J34: =E18 -> 3
C35: META DE PRODUCTO No. 2: Disminuir a 360 el número de puestos en provisionalidad de las 4 Plazas | F35: No. De Puestos en Provisionalidad disminuidos | I35: P | J35: 30 | K35: FIRMA
I36: E | J36: =E20 -> 16
C37: META DE PRODUCTO No. 3: Recuperación de 60 Millones por concepto de cartera de Plazas de Mercado | F37: Cantidad de Millones Recupersdos | I37: P | J37: 60 | K37: NOMBRE JEFE GRUPO: Yor Fredy Olaya Pava
I38: E | J38: =E22 -> 61
B39: OBSERVACIONES: | K39: FIRMA

Sheet CONTROL INTERNO
B1: FICHA PLAN DE ACCION POR PROCESOS - FPAP - VIGENCIA 2014
B2: MUNICIPIO DE IBAGUÉ
B3: FICHA DE PROGRAMACION Y SEGUIMIENTO
B4: SECRETARÍA / ENTIDAD: INFIBAGUE / GRUPO: CONTROL INTERNO
B5: FECHA DE PROGRAMACION: NOVIEMBRE DE 2013 | C5: FECHA DE SEGUIMIENTO: | G5: 2014-08-06 | M5: JULIO - 2014 -
B7: MACROPROCESO: CONTROL INTERNO | E7: PROCESO: CONTROL INTERNO
B8: SEGURIDAD: SEGURIDAD POLITICA | H8: Objetivos: Efectuar seguimiento a través de las auditorías de manera objetiva. Controlar, realizar acompañamiento y evaluar. | K8: RELACION DE CONTRATOS Y CONVENIOS
B9: PROGRAMA: DINAMIZACION DE LOS ENTES DESCENTRALIZADOS | K9: No | L9: OBJETO | O9: VALOR
B10: NOMBRE DEL PROYECTO POAI: CONTROL INTERNO
B11: DEPENDENCIA / GRUPO: CONTROL INTERNO
B12: CODIGO BPPIM:
B13: CODIGO PRESUPUESTAL: RUBRO:
B14: PRINCIPALES ACTIVIDADES | C14: PROG EJEC | D14: UNIDAD DE MEDIDA | E14: CANT. | F14: COSTO TOTAL ( MILES DE PESOS) | G14: FUENTES DE FINANCIACION ( EN MILES DE $) | K14: PROGRAMACION (dd/mm/aa) | M14: INDICADORES DE GESTION
M15: INDICE FISICO | N15: INDICE INVERSION | O15: EFICIENCIA
G16: MPIO | H16: SGP | I16: REGALIAS | J16: OTROS | K16: INICIO | L16: TERMINACION
B17: 1. Evaluar selectivamente el Sistema de Control Interno de la Entidad | C17: P | D17: UNIDAD | E17: 15 | F17: GESTION | K17: 2014-01-02 | L17: 2014-12-31 | M17: =+E18/E17*100 -> 66.67 | O17: =M17 -> 66.67
C18: E | E18: =2+2+2+1+1+1+1 -> 10
B19: 2. Fomentar la cultura del autocontrol en los servidores públicos de la entidad; promoviendo el cambio de actitud hacia el autocontrol, la gestión responsable y transparente | C19: P | D19: UNIDAD | E19: 4 | F19: GESTION | K19: 2014-01-02 | L19: 2014-12-31 | M19: =+E20/E19*100 -> 150.00 | O19: =M19 -> 150.00
C20: E | E20: =1+1+0+1+2+1 -> 6
B21: 3. Realizar seguimiento a los planes de mejoramiento | C21: P | D21: UNIDAD | E21: 4 | F21: GESTION | K21: 2014-01-02 | L21: 2014-12-31 | M21: =+E22/E21*100 -> 75.00 | O21: =M21 -> 75.00
C22: E | E22: =1+1+1 -> 3
C23: P
C24: E
C25: P
C26: E
B27: TOTAL PLAN DE ACCION | C27: P | M27: =AVERAGE(M17:M22) -> 97.22 | O27: =AVERAGE(O17:O22) -> 97.22
C28: E
B30: METAS DE RESULTADO | C30: METAS DE PRODUCTO | F30: INDICADORES | K30: SECRETARIO DESPACHO / GERENTE
B31: META DE RESULTADO No. 1: | C31: META DE PRODUCTO No. 1: Realizar 15 Evaluaciones selectivas al Sistema de Control Interno de la Entidad | F31: No. De Evaluaciones Realizadas | I31: P | J31: 15 | K31: NOMBRE: Piedad Consuelo Franco Rios
I32: E | J32: =E18 -> 10
C33: META DE PRODUCTO No. 2: Realizar 4 procesos de fomento de la cultura del autocontrol en la entidad | F33: No. De Procesos Realizados | I33: P | J33: 4 | K33: FIRMA
I34: E | J34: =E20 -> 6
C35: META DE PRODUCTO No. 3: Realizar 4 seguimientos a los planes de mejoramiento de la entidad | F35: No. De Seguimientos Realizados | I35: P | J35: 4 | K35: NOMBRE JEFE GRUPO: Claudia Rocio Guerrero
I36: E | J36: =E22 -> 3
B37: OBSERVACIONES: | K37: FIRMA

Sheet PLANEACION
B1: FICHA PLAN DE ACCION POR PROCESOS - FPAP - VIGENCIA 2014
B2: MUNICIPIO DE IBAGUÉ
B3: FICHA DE PROGRAMACION Y SEGUIMIENTO
B4: SECRETARÍA / ENTIDAD: INFIBAGUE / GRUPO: PLANEACION
B5: FECHA DE PROGRAMACION: NOVIEMBRE DE 2013 | C5: FECHA DE SEGUIMIENTO: | G5: 2014-08-06 | M5: JULIO - 2014 -
B7: MACROPROCESO: PLANEACION | E7: PROCESO: PLANEACION
B8: SEGURIDAD: SEGURIDAD POLITICA | H8: Objetivos: Efectuar seguimiento a través de las auditorías de manera objetiva. Controlar, realizar acompañamiento y evaluar. | K8: RELACION DE CONTRATOS Y CONVENIOS
B9: PROGRAMA: DINAMIZACION DE LOS ENTES DESCENTRALIZADOS | K9: No | L9: OBJETO | O9: VALOR
B10: NOMBRE DEL PROYECTO POAI: PLANEACION
B11: DEPENDENCIA / GRUPO: PLANEACION
B12: CODIGO BPPIM:
B13: CODIGO PRESUPUESTAL: RUBRO:
B14: PRINCIPALES ACTIVIDADES | C14: PROG EJEC | D14: UNIDAD DE MEDIDA | E14: CANT. | F14: COSTO TOTAL ( MILES DE PESOS) | G14: FUENTES DE FINANCIACION ( EN MILES DE $) | K14: PROGRAMACION (dd/mm/aa) | M14: INDICADORES DE GESTION
M15: INDICE FISICO | N15: INDICE INVERSION | O15: EFICIENCIA
G16: MPIO | H16: SGP | I16: REGALIAS | J16: OTROS | K16: INICIO | L16: TERMINACION
B17: 1. Elaboracion y seguimiento al Plan de Acción | C17: P | D17: UNIDAD | E17: 12 | F17: GESTION | K17: 2014-01-02 | L17: 2014-12-31 | M17: =+E18/E17*100 -> 58.33 | O17: =M17 -> 58.33
C18: E | E18: =1+1+1+1+1+1+1 -> 7
B19: 2. Seguimiento Plan de Desarrollo | C19: P | D19: UNIDAD | E19: 4 | F19: GESTION | K19: 2014-01-02 | L19: 2014-12-31 | M19: =+E20/E19*100 -> 75.00 | O19: =M19 -> 75.00
C20: E | E20: =1+1+1 -> 3
B21: 3. Analisis estadísticos de datos reportadas por todas las divisiones | C21: P | D21: UNIDAD | E21: 12 | F21: GESTION | K21: 2014-01-02 | L21: 2014-12-31 | M21: =+E22/E21*100 -> 58.33 | O21: =M21 -> 58.33
C22: E | E22: =(1+1+1+1+1+1+1) -> 7
B23: 4. Sostenibilidad del MECI | C23: P | D23: UNIDAD | E23: 2 | F23: GESTION | K23: 2014-01-02 | L23: 2014-12-31 | M23: =+E24/E23*100 -> 50.00 | O23: =M23 -> 50.00
C24: E | E24: 1
B25: 5. Seguimiento y calificación del Plan Indicativo | C25: P | D25: UNIDAD | E25: 4 | F25: GESTION | K25: 2014-01-02 | L25: 2014-12-31 | M25: =+E26/E25*100 -> 50.00 | O25: =M25 -> 50.00
C26: E | E26: =1+1 -> 2
B27: TOTAL PLAN DE ACCION | C27: P | M27: =AVERAGE(M17:M26) -> 58.33 | O27: =AVERAGE(O17:O26) -> 58.33
C28: E
B30: METAS DE RESULTADO | C30: METAS DE PRODUCTO | F30: INDICADORES | K30: SECRETARIO DESPACHO / GERENTE
B31: META DE RESULTADO No. 1: | C31: META DE PRODUCTO No. 1: Elaboracion y seguimiento al Plan de Acción | F31: No. De Seguimientos Realizados | I31: P | J31: 12 | K31: NOMBRE: Piedad Consuelo Franco Rios
I32: E | J32: =E18 -> 7
C33: META DE PRODUCTO No. 2: Seguimiento Plan de Desarrollo | F33: No. De Seguimientos Realizados | I33: P | J33: 4
I34: E | J34: =E20 -> 3
C35: META DE PRODUCTO No. 3: Analisis estadísticos de datos reportadas por todas las divisiones | F35: No. De Análisis Realizados | I35: P | J35: 12
I36: E | J36: =E22 -> 7 | K36: FIRMA
C37: META DE PRODUCTO No. 4: Sostenibilidad del MECI | F37: No. De Procesos de sostenibilidad Realizados | I37: P | J37: 2 | K37: NOMBRE JEFE GRUPO: Adriana Isabela Rojas Saravia
I38: E | J38: =E24 -> 1
C39: META DE PRODUCTO No. 5: Seguimiento y calificación del Plan Indicativo | F39: No. De Seguimientos Realizados | I39: P | J39: 4
I40: E | J40: =E26 -> 2
B41: OBSERVACIONES: | K41: FIRMA

Sheet FERIA AGROPECUARIA
B1: FICHA PLAN DE ACCION POR PROCESOS - FPAP - VIGENCIA 2014
B2: MUNICIPIO DE IBAGUÉ
B3: FICHA DE PROGRAMACION Y SEGUIMIENTO
B4: SECRETARÍA / ENTIDAD: INFIBAGUE / GRUPO: PROYECTOS Y ESQUEMAS EMPRESARIALES
B5: FECHA DE PROGRAMACION: NOVIEMBRE DE 2013 | C5: FECHA DE SEGUIMIENTO: | G5: 2014-08-06 | M5: JULIO - 2014 -
B7: MACROPROCESO: FERIA AGROPECUARIA | E7: PROCESO: FERIA AGRPECUARIA
B8: SEGURIDAD: SEGURIDAD ECONOMICA Y ALIMENTARIA | H8: Objetivos: Impulsar la actividad Agroindustrial en la ciudad de Ibagué | K8: RELACION DE CONTRATOS Y CONVENIOS
B9: PROGRAMA: APOYO A APUESTAS PRODUCTIVAS | K9: No | L9: OBJETO | O9: VALOR
B10: NOMBRE DEL PROYECTO POAI: EVENTOS FERIALES AGRICOLAS Y PECUARIOS
B11: DEPENDENCIA / GRUPO: PROYECTOS Y ESQUEMAS EMPRESARIALES
B12: CODIGO BPPIM:
B13: CODIGO PRESUPUESTAL: RUBRO:
B14: PRINCIPALES ACTIVIDADES | C14: PROG EJEC | D14: UNIDAD DE MEDIDA | E14: CANT. | F14: COSTO TOTAL ( MILES DE PESOS) | G14: FUENTES DE FINANCIACION ( EN MILES DE $) | K14: PROGRAMACION (dd/mm/aa) | M14: INDICADORES DE GESTION
M15: INDICE FISICO | N15: INDICE INVERSION | O15: EFICIENCIA
G16: MPIO | H16: SGP | I16: REGALIAS | J16: OTROS | K16: INICIO | L16: TERMINACION
B17: 1. Lanzamiento de la 47ª Feria Agropecuaria | C17: P | D17: UNIDAD | E17: 1 | F17: 10,000 | K17: 2014-01-02 | L17: 2014-12-31 | M17: =+E18/E17*100 -> 100.00 | N17: =+F18/F17*100 -> 90.00 | O17: =AVERAGE(M17:N18) -> 95.00
C18: E | E18: 1 | F18: 9,000 | J18: X
B19: 2. Realización de la 47ª Feria Agropecuaria | C19: P | D19: UNIDAD | E19: 1 | F19: 290,000 | G19: x | K19: 2014-01-02 | L19: 2014-12-31 | M19: =+E20/E19*100 -> 100.00 | N19: =+F21/F19*100 -> 135.52 | O19: =AVERAGE(M19:N20) -> 117.76
C20: E | E20: 1
B21: 3. Realización de un evento ferial Agricola - Pecuario o Comercial | C21: P | D21: UNIDAD | E21: 1 | F21: 393,000 | G21: x | K21: 2014-01-02 | L21: 2014-12-31 | M21: =+E22/E21*100 -> 0.00 | O21: =M21 -> 0.00
C22: E
C23: P
C24: E
C25: P
C26: E
B27: TOTAL PLAN DE ACCION | C27: P | F27: =(F17+F19) -> 300,000 | M27: =AVERAGE(M17:M22) -> 66.67 | N27: =AVERAGE(N17:N20) -> 112.76 | O27: =AVERAGE(M27:N28) -> 89.71
C28: E | F28: =(F18+F21) -> 402,000
B30: METAS DE RESULTADO | C30: METAS DE PRODUCTO | F30: INDICADORES | K30: SECRETARIO DESPACHO / GERENTE
B31: META DE RESULTADO No. 1: Realización de 2 eventos feriales Agrícolas y Pecuarios | C31: META DE PRODUCTO No. 1: Lanzamiento de la 47ª Feria Agropecuaria | F31: No. De Eventos feriales lanzados | I31: P | J31: 1 | K31: NOMBRE: Piedad Consuelo Franco
I32: E | J32: =E18 -> 1
C33: META DE PRODUCTO No. 2: Realización de la 47ª Feria Agropecuaria | F33: No. De Eventos feriales Realizados | I33: P | J33: 1 | K33: FIRMA
I34: E | J34: =E20 -> 1
C35: META DE PRODUCTO No. 3: Realización de un evento ferial Agricola - Pecuario o Comercial | F35: No. De Eventos feriales Realizados | I35: P | J35: 1 | K35: NOMBRE JEFE GRUPO: Paulo Emilio Salas Calpa
I36: E | J36: =E22 -> 0
B37: OBSERVACIONES: | K37: FIRMA

Sheet P.Z.V.
B1: FICHA PLAN DE ACCION POR PROCESOS - FPAP - VIGENCIA 2014
B2: MUNICIPIO DE IBAGUÉ
B3: FICHA DE PROGRAMACION Y SEGUIMIENTO
B4: SECRETARÍA / ENTIDAD: INFIBAGUE / GRUPO: DIVISION OPERATIVA Y GESTION AMBIENTAL
B5: FECHA DE PROGRAMACION: NOVIEMBRE DE 2013 | C5: FECHA DE SEGUIMIENTO: | G5: 2014-08-06 | M5: JULIO - 2014 -
B7: MACROPROCESO: PARQUES Y ZONAS VERDES | E7: PROCESO: PARQUES Y ZONAS VERDES
B8: SEGURIDAD: SEGURIDAD AMBIENTAL Y DEL ENTORNO | H8: Objetivos: Recuperar las Zonas Verdes y Parques de la Ciudad de Ibagué, para el mejoramiento de la calidad de vida de sus habitantes | K8: RELACION DE CONTRATOS Y CONVENIOS
B9: PROGRAMA: RECUPERACIÓN, CONSTRUCCIÓN Y ARTICULACIÓN DEL SISTEMA DE ESPACIO PÚBLICO MUNICIPAL | K9: No | L9: OBJETO | O9: VALOR
B10: NOMBRE DEL PROYECTO POAI: PARQUES Y ZONAS VERDES
B11: DEPENDENCIA / GRUPO: DIVISION OPERATAVA Y GESTION AMBIENTAL
B12: CODIGO BPPIM:
B13: CODIGO PRESUPUESTAL: RUBRO:
B14: PRINCIPALES ACTIVIDADES | C14: PROG EJEC | D14: UNIDAD DE MEDIDA | E14: CANT. | F14: COSTO TOTAL ( MILES DE PESOS) | G14: FUENTES DE FINANCIACION ( EN MILES DE $) | K14: PROGRAMACION (dd/mm/aa) | M14: INDICADORES DE GESTION
M15: INDICE FISICO | N15: INDICE INVERSION | O15: EFICIENCIA
G16: MPIO | H16: SGP | I16: REGALIAS | J16: OTROS | K16: INICIO | L16: TERMINACION
B17: 1. Rocerias | C17: P | D17: UNIDAD | E17: 1,950 | F17: 500,000 | G17: x | K17: 2014-01-02 | L17: 2014-12-31 | M17: =+E18/E17*100 -> 76.51 | N17: =+F24/F17*100 -> 112.84 | O17: =AVERAGE(M17,N17) -> 94.67
C18: E | E18: =(192+173+541+168+186+138+94) -> 1,492
B19: 2. Talas de Arboles | C19: P | D19: UNIDAD | E19: 635 | G19: x | K19: 2014-01-02 | L19: 2014-12-31 | M19: =+E20/E19*100 -> 82.68 | O19: =AVERAGE(M19,N17) -> 97.76
C20: E | E20: =(65+64+181+46+74+63+32) -> 525
B21: 3. Podas de Arboles | C21: P | D21: UNIDAD | E21: 1,450 | G21: x | K21: 2014-01-02 | L21: 2014-12-31 | M21: =+E22/E21*100 -> 125.93 | O21: =AVERAGE(M21,N17) -> 119.38
C22: E | E22: =(220+270+755+200+196+102+83) -> 1,826
B23: 4. Siembra de Material Vegetal Arboreo y Jardinería | C23: P | D23: UNIDAD | E23: 1,000 | G23: x | K23: 2014-01-02 | L23: 2014-12-31 | M23: =+E24/E23*100 -> 50.80 | O23: =AVERAGE(M23,N17) -> 81.82
C24: E | E24: =(82+52+208+45+67+31+23) -> 508 | F24: =(63320)+(37443)+(98443)+(133979)+(110000)+(110000)+(11000) -> 564,185
B25: 5. Elaboración de Nuevos Juegos Infantiles | C25: P | D25: UNIDAD | E25: 40 | G25: x | K25: 2014-01-02 | L25: 2014-12-31 | M25: =+E26/E25*100 -> 35.00 | O25: =AVERAGE(M25,N17) -> 73.92
C26: E | E26: =(7+4+1+1+0+1) -> 14
B27: 6. Mantenimiento y Recuperación de Juegos Infantiles | C27: P | D27: UNIDAD | E27: 60 | G27: x | K27: 2014-01-02 | L27: 2014-12-31 | M27: =+E28/E27*100 -> 101.67 | O27: =AVERAGE(M27,N17) -> 107.25
C28: E | E28: =(16+13+9+15+3+3+2) -> 61
B29: 7. Adecuación y Remodelación de Parques | C29: P | D29: UNIDAD | E29: 20 | G29: x | K29: 2014-01-02 | L29: 2014-12-31 | M29: =+E30/E29*100 -> 0.00 | O29: =AVERAGE(M29,N17) -> 56.42
C30: E
B31: TOTAL PLAN DE ACCION | C31: P | F31: =F17 -> 500,000 | M31: =AVERAGE(M17:M30) -> 67.51 | N31: =N17 -> 112.84 | O31: =AVERAGE(M31:N32) -> 90.17
C32: E | F32: =F24 -> 564,185
B34: METAS DE RESULTADO | C34: METAS DE PRODUCTO | F34: INDICADORES | K34: SECRETARIO DESPACHO / GERENTE
B35: META DE RESULTADO No. 1: MEJORAMIENTO Integral de 60 Parques Infantiles del Municipio | C35: META DE PRODUCTO No. 1: Recuperación de 60 Parques Infantiles | F35: No. De Parques Infantiles mejorados | I35: P | J35: 60 | K35: NOMBRE: Piedad Consuelo Franco
I36: E | J36: =E28 -> 61
B37: META DE RESULTADO No. 2: Siembra de 2.000 especies ornamentales (Ocobos, Gualandayes y otros) para embellecimiento de zonas verdes, como separadores, triangulos y parques. | C37: META DE PRODUCTO No. 2: Siembra de 2.000 Especies Ornamentales | F37: No. De Especies Ornamentales Sembradas | I37: P | J37: 2,000
I38: E | J38: =(6289+6250+1599+0+0+0+0) -> 14,138
B39: META DE RESULTADO No. 3: Realizar 4.035 actividades de mantenimiento de Zonas Verdes | C39: META DE PRODUCTO No. 3: Realizar 4.035 actividades de mantenimiento de Zonas Verdes (Talas, Podas, Rocerías y Jardinería) | F39: No. De Actividades Realizadas | I39: P | J39: 4,035 | K39: NOMBRE JEFE GRUPO: Julio Cesar Rodriguez Acosta
I40: E | J40: =E18+E20+E22 -> 3,843
B41: OBSERVACIONES: | K41: FIRMA

Sheet RELLENO SANITARIO
B1: FICHA PLAN DE ACCION POR PROCESOS - FPAP - VIGENCIA 2014
B2: MUNICIPIO DE IBAGUÉ
B3: FICHA DE PROGRAMACION Y SEGUIMIENTO
B4: SECRETARÍA / ENTIDAD: INFIBAGUE / GRUPO: DIVISION OPERATIVA Y GESTION AMBIENTAL
B5: FECHA DE PROGRAMACION: NOVIEMBRE DE 2013 | C5: FECHA DE SEGUIMIENTO: | G5: 2014-08-06 | M5: JULIO - 2014 -
B7: MACROPROCESO: Clausura y Posclausura del Relleno Sanitario Combeima | E7: PROCESO: Clausura y Posclausura del Relleno Sanitario Combeima
B8: SEGURIDAD: SEGURIDAD AMBIENTAL Y DEL ENTORNO | H8: Objetivos: Mitigar el impacto ambiental generado por los residuos sólidos | K8: RELACION DE CONTRATOS Y CONVENIOS
B9: PROGRAMA: Cumplimiento e Implementación del Plan de gestión ambiental de Residuos Sólidos | K9: No | L9: OBJETO | O9: VALOR
B10: NOMBRE DEL PROYECTO POAI: Relleno Sanitario Combeima
B11: DEPENDENCIA / GRUPO: DIVISION OPERATIVA Y GESTION AMBIENTAL
B12: CODIGO BPPIM:
B13: CODIGO PRESUPUESTAL: RUBRO:
B14: PRINCIPALES ACTIVIDADES | C14: PROG EJEC | D14: UNIDAD DE MEDIDA | E14: CANT. | F14: COSTO TOTAL ( MILES DE PESOS) | G14: FUENTES DE FINANCIACION ( EN MILES DE $) | K14: PROGRAMACION (dd/mm/aa) | M14: INDICADORES DE GESTION
M15: INDICE FISICO | N15: INDICE INVERSION | O15: EFICIENCIA
G16: MPIO | H16: SGP | I16: REGALIAS | J16: OTROS | K16: INICIO | L16: TERMINACION
B17: 1. Monitoreos de Aguas | C17: P | D17: UNIDAD | E17: 3 | F17: 18,000 | G17: X | K17: 2014-01-02 | L17: 2014-12-31 | M17: =+E18/E17*100 -> 66.67 | N17: =+F18/F17*100 -> 64.44 | O17: =AVERAGE(M17:N18) -> 65.56
C18: E | E18: =1+1 -> 2 | F18: =5800+5800 -> 11,600
B19: 2. Monitoreos de Biogas | C19: P | D19: UNIDAD | E19: 1 | F19: 7,000 | G19: X | K19: 2014-01-02 | L19: 2014-12-31 | M19: =+E20/E19*100 -> 100.00 | N19: =+F20/F19*100 -> 105.71 | O19: =AVERAGE(M19:N20) -> 102.86
C20: E | E20: 1 | F20: 7,400
B21: 3. Monitoreos de Geotecnia | C21: P | D21: UNIDAD | E21: 2 | F21: 10,000 | G21: X | K21: 2014-01-02 | L21: 2014-12-31 | M21: =+E22/E21*100 -> 100.00 | N21: =+F22/F21*100 -> 100.00 | O21: =AVERAGE(M21:N22) -> 100.00
C22: E | E22: =1+1 -> 2 | F22: =5000+5000 -> 10,000
B23: 4. Monitoreo Planta de Lixiviados | C23: P | D23: UNIDAD | E23: 5 | F23: 30,000 | G23: X | K23: 2014-01-02 | L23: 2014-12-31 | M23: =+E24/E23*100 -> 100.00 | N23: =+F24/F23*100 -> 80.00 | O23: =AVERAGE(M23:N24) -> 90.00
C24: E | E24: =1+1+1+1+1 -> 5 | F24: =6000+6000+6000+6000 -> 24,000
B25: 5. Mantenimiento a la Cobertura Final del Domo | C25: P | D25: UNIDAD | E25: 2 | F25: =25000+6000 -> 31,000 | G25: X | K25: 2014-01-02 | L25: 2014-12-31 | M25: =+E26/E25*100 -> 300.00 | N25: =+F26/F25*100 -> 67.19 | O25: =AVERAGE(M25:N26) -> 183.60
C26: E | E26: =1+1+1+1+1+1 -> 6 | F26: =4166+4166+4166+4166+4166 -> 20,830
B27: TOTAL PLAN DE ACCION | C27: P | F27: =+F17+F19+F21+F23+F25 -> 96,000 | M27: =AVERAGE(M17:M26) -> 133.33 | N27: =AVERAGE(N17:N26) -> 83.47 | O27: =AVERAGE(M27:N28) -> 108.40
C28: E | F28: =F18+F20+F22+F24+F26 -> 73,830
B30: METAS DE RESULTADO | C30: METAS DE PRODUCTO | F30: INDICADORES | K30: SECRETARIO DESPACHO / GERENTE
B31: META DE RESULTADO No. 1: cumplimiento del 100% de las etapas de Clausura y Posclausura del Relleno Sanitario Combeima | C31: META DE PRODUCTO No. 1: Monitoreos de Aguas | F31: No. De Monitoreos Realizados | I31: P | J31: 3 | K31: NOMBRE: Piedad Consuelo Franco Rios
I32: E | J32: =E18 -> 2
C33: META DE PRODUCTO No. 2: Monitoreos de Biogas | F33: No. De Monitoreos Realizados | I33: P | J33: 3
I34: E | J34: =E20 -> 1
C35: META DE PRODUCTO No. 3: Monitoreos de Geotecnia | F35: No. De Monitoreos Realizados | I35: P | J35: 2
I36: E | J36: =E22 -> 2
C37: META DE PRODUCTO No. 4: Mantenimiento a la Cobertura Final del Domo | F37: No. De Mantenimientos Realizados | I37: P | J37: 1 | K37: NOMBRE JEFE GRUPO: Julio Cesar Rodriguez Acosta
I38: E | J38: =E24 -> 5
B39: OBSERVACIONES: | K39: FIRMA

Sheet FUENTES
B1: FICHA PLAN DE ACCION POR PROCESOS - FPAP - VIGENCIA 2014
B2: MUNICIPIO DE IBAGUÉ
B3: FICHA DE PROGRAMACION Y SEGUIMIENTO
B4: SECRETARÍA / ENTIDAD: INFIBAGUE / GRUPO: DIVISION OPERATIVA Y GESTION AMBIENTAL
B5: FECHA DE PROGRAMACION: NOVIEMBRE DE 2013 | C5: FECHA DE SEGUIMIENTO: | G5: 2014-08-06 | M5: JULIO - 2014 -
B7: MACROPROCESO: FUENTES | E7: PROCESO: FUENTES
B8: SEGURIDAD: SEGURIDAD AMBIENTAL Y DEL ENTORNO | H8: Objetivos: Mantener las fuentes en perfecto funcionamiento, aspecto limpio y agradable | K8: RELACION DE CONTRATOS Y CONVENIOS
B9: PROGRAMA: RENOVACION E INFRAESTRUCTURA URBANA | K9: No | L9: OBJETO | O9: VALOR
B10: NOMBRE DEL PROYECTO POAI: FUENTES
B11: DEPENDENCIA / GRUPO: DIVISION OPERATIVA Y GESTION AMBIENTAL
B12: CODIGO BPPIM:
B13: CODIGO PRESUPUESTAL: RUBRO:
B14: PRINCIPALES ACTIVIDADES | C14: PROG EJEC | D14: UNIDAD DE MEDIDA | E14: CANT. | F14: COSTO TOTAL ( MILES DE PESOS) | G14: FUENTES DE FINANCIACION ( EN MILES DE $) | K14: PROGRAMACION (dd/mm/aa) | M14: INDICADORES DE GESTION
M15: INDICE FISICO | N15: INDICE INVERSION | O15: EFICIENCIA
G16: MPIO | H16: SGP | I16: REGALIAS | J16: OTROS | K16: INICIO | L16: TERMINACION
B17: 1. Mantenimientos de Limpieza de las fuentes | C17: P | D17: UNIDAD | E17: 336 | F17: 8,000 | G17: X | K17: 2014-01-02 | L17: 2014-12-31 | M17: =+E18/E17*100 -> 84.52 | N17: =+F18/F17*100 -> 175.50 | O17: =AVERAGE(M17:N18) -> 130.01
C18: E | E18: =(39+44+40+54+57+50) -> 284 | F18: =2340+2340+2340+2340+2340+2340 -> 14,040
B19: 2. Mantenimientos Eléctricos y/o Hidráulicos | C19: P | D19: UNIDAD | E19: 168 | F19: 5,200 | G19: X | K19: 2014-01-02 | L19: 2014-12-31 | M19: =+E20/E19*100 -> 14.29 | N19: =+F20/F19*100 -> 0.00 | O19: =AVERAGE(M19:N20) -> 7.14
C20: E | E20: =1+20+3+0 -> 24
C21: P
C22: E
C23: P
C24: E
C25: P
C26: E
B27: TOTAL PLAN DE ACCION | C27: P | F27: =+F17+F19 -> 13,200 | M27: =AVERAGE(M17:M20) -> 49.40 | N27: =AVERAGE(N17:N20) -> 87.75 | O27: =AVERAGE(M27:N28) -> 68.58
C28: E | F28: =+F18+F20 -> 14,040
B30: METAS DE RESULTADO | C30: METAS DE PRODUCTO | F30: INDICADORES | K30: SECRETARIO DESPACHO / GERENTE
B31: META DE RESULTADO No. 1: Mantenimiento y recuperación de 14 fuentes del ornato urbano | C31: META DE PRODUCTO No. 1: Realizar 336 mantenimientos de limpieza | F31: No. De Mantenimientos Realizados | I31: P | J31: 336 | K31: NOMBRE: Piedad Consuelo Franco Rios
I32: E | J32: =E18 -> 284
C33: META DE PRODUCTO No. 2: Realizar 168 mantenimientos de Electricos y/o Hidraulicos | F33: No. De Mantenimientos Realizados | I33: P | J33: 168 | K33: FIRMA
I34: E | J34: =E20 -> 24
I35: P | K35: NOMBRE JEFE GRUPO: Julio Cesar Rodriguez Acosta
I36: E
B37: OBSERVACIONES: | K37: FIRMA

Sheet SISTEMAS
B1: FICHA PLAN DE ACCION POR PROCESOS - FPAP - VIGENCIA 2014
B2: MUNICIPIO DE IBAGUÉ
B3: FICHA DE PROGRAMACION Y SEGUIMIENTO
B4: SECRETARÍA / ENTIDAD: INFIBAGUE / GRUPO: ADMINISTRATIVA
B5: FECHA DE PROGRAMACION: NOVIEMBRE DE 2013 | C5: FECHA DE SEGUIMIENTO: | G5: 2014-08-06 | M5: JULIO - 2014 -
B7: MACROPROCESO: SISTEMAS | E7: PROCESO: SISTEMAS
B8: SEGURIDAD: SEGURIDAD POLITICA | H8: Objetivos: Prestar servicio de soporte técnico y funcional a usuarios. Dotar al instituto de herramientas tecnológicas acordes con las funciones de cada servidor. | K8: RELACION DE CONTRATOS Y CONVENIOS
B9: PROGRAMA: DINAMIZACION DE LOS ENTES DESCENTRALIZADOS | K9: No | L9: OBJETO | O9: VALOR
B10: NOMBRE DEL PROYECTO POAI: SISTEMAS
B11: DEPENDENCIA / GRUPO: ADMINISTRATIVA
B12: CODIGO BPPIM:
B13: CODIGO PRESUPUESTAL: RUBRO:
B14: PRINCIPALES ACTIVIDADES | C14: PROG EJEC | D14: UNIDAD DE MEDIDA | E14: CANT. | F14: COSTO TOTAL ( MILES DE PESOS) | G14: FUENTES DE FINANCIACION ( EN MILES DE $) | K14: PROGRAMACION (dd/mm/aa) | M14: INDICADORES DE GESTION
M15: INDICE FISICO | N15: INDICE INVERSION | O15: EFICIENCIA
G16: MPIO | H16: SGP | I16: REGALIAS | J16: OTROS | K16: INICIO | L16: TERMINACION
B17: 1. Realizar mantenimiento preventivo y correctivo a la red física y computacional del instituto | C17: P | D17: UNIDAD | E17: 3 | F17: 10,000 | G17: x | K17: 2014-01-02 | L17: 2014-12-31 | M17: =+E18/E17*100 -> 33.33 | N17: =+F18/F17*100 -> 34.32 | O17: =AVERAGE(M17:N18) -> 33.83
C18: E | E18: 1 | F18: 3,432
B19: 2. Realizar mantenimiento preventivo y correctivo a la planta telefónica del instituto | C19: P | D19: UNIDAD | E19: 12 | F19: 3,800 | G19: x | K19: 2014-01-02 | L19: 2014-12-31 | M19: =+E20/E19*100 -> 58.33 | N19: =+F20/F19*100 -> 43.42 | O19: =AVERAGE(M19:N20) -> 50.88
C20: E | E20: =1+1+1+1+1+1+1 -> 7 | F20: =270+276+276+276+276+276 -> 1,650
B21: 3. Reposición de partes físicas en caso de daños eventuales en computadores, monitores, impresoras de red y/o switches | C21: P | D21: UNIDAD | E21: 1 | F21: 5,000 | G21: x | K21: 2014-01-02 | L21: 2014-12-31 | M21: =+E22/E21*100 -> 0.00 | N21: =+F22/F21*100 -> 0.00 | O21: =AVERAGE(M21:N22) -> 0.00
C22: E | E22: 0 | F22: 0
B23: 4. Servicio de soporte del sistema de información | C23: P | D23: UNIDAD | E23: 12 | F23: 157,200 | G23: x | K23: 2014-01-02 | L23: 2014-12-31 | M23: =+E24/E23*100 -> 25.00 | N23: =+F24/F23*100 -> 0.00 | O23: =AVERAGE(M23:N24) -> 12.50
C24: E | E24: =1+1+1 -> 3 | F24: 0
B25: 5. Adquisición de equipos computacionales | C25: P | D25: UNIDAD | E25: 1 | F25: 20,000 | G25: x | K25: 2014-01-02 | L25: 2014-12-31 | M25: =+E26/E25*100 -> 0.00 | N25: =+F26/F25*100 -> 0.00 | O25: =AVERAGE(M25:N26) -> 0.00
C26: E
B27: 6. Servicio de Hosting Anual para Dominio de Infibague | C27: P | D27: UNIDAD | E27: 1 | F27: 3,000 | G27: x | K27: 2014-01-02 | L27: 2014-12-31 | M27: =+E28/E27*100 -> 100.00 | N27: =+F28/F27*100 -> 87.37 | O27: =AVERAGE(M27:N28) -> 93.68
C28: E | E28: 1 | F28: 2,621
B29: 7. Mantenimiento de Aires Acondicionades | C29: P | D29: UNIDAD | E29: 3 | F29: 3,000 | G29: x | K29: 2014-01-02 | L29: 2014-12-31 | M29: =+E30/E29*100 -> 33.33 | N29: =+F30/F29*100 -> 45.00 | O29: =AVERAGE(M29:N30) -> 39.17
C30: E | E30: 1 | F30: 1,350
B31: 8. Servicio de Internet Banda Ancha enlace Dedicado 4 MB | C31: P | D31: UNIDAD | E31: 12 | F31: 18,000 | G31: x | K31: 2014-01-02 | L31: 2014-12-31 | M31: =+E32/E31*100 -> 58.33 | N31: =+F32/F31*100 -> 61.26 | O31: =AVERAGE(M31:N32) -> 59.80
C32: E | E32: =1+1+1+1+1+1+1 -> 7 | F32: =(2027+1500+1500+1500+1500+1500+1500) -> 11,027
B33: TOTAL PLAN DE ACCION | C33: P | F33: =+F17+F19+F21+F23+F25+F27+F29+F31 -> 220,000 | M33: =AVERAGE(M17:M32) -> 38.54 | N33: =AVERAGE(N17:N32) -> 33.92 | O33: =AVERAGE(M33:N34) -> 36.23
C34: E | F34: =+F18+F20+F22+F24+F26+F28+F30+F32 -> 20,080
B36: METAS DE RESULTADO | C36: METAS DE PRODUCTO | F36: INDICADORES | K36: SECRETARIO DESPACHO / GERENTE
B37: META DE RESULTADO No. 1: | C37: META DE PRODUCTO No. 1: Realizar mantenimiento preventivo y correctivo a la red física y computacional del instituto | F37: No. De Mantenimientos Realizados | I37: P | J37: 12 | K37: NOMBRE: Piedad Consuelo Franco Rios
I38: E | J38: =E18 -> 1
C39: META DE PRODUCTO No. 2: Realizar mantenimiento preventivo y correctivo a la planta telefónica del instituto | F39: No. De Mantenimientos Realizados | I39: P | J39: 12
I40: E | J40: =E20 -> 7
C41: META DE PRODUCTO No. 3: Reposición de partes físicas en caso de daños eventuales en computadores, monitores, impresoras de red y/o switches | F41: No. De Partes Adquiridas | I41: P | J41: 1
I42: E | J42: =E22 -> 0
C43: META DE PRODUCTO No. 4: Servicio de soporte del sistema de información | F43: No. De Servicios Recibidos | I43: P | J43: 12 | K43: FIRMA
I44: E | J44: =E24 -> 3
C45: META DE PRODUCTO No. 5: Adquisición de equipos computacionales | F45: No. De Equipos Adquiridos | I45: P | J45: 1 | K45: NOMBRE JEFE GRUPO: John Carlos Aguilar Calderon
I46: E | J46: =E26 -> 0
C47: META DE PRODUCTO No. 6: Servicio de Hosting Anual para Dominio de Infibague | F47: No. De Servicios Recibidos | I47: P | J47: 1
I48: E | J48: =E28 -> 1
C49: META DE PRODUCTO No. 7: Mantenimiento de Aires Acondicionades | F49: No. De Mantenimientos Realizados | I49: P | J49: 3
I50: E | J50: =E30 -> 1
B51: OBSERVACIONES: | K51: FIRMA

Sheet ALMACEN
B1: FICHA PLAN DE ACCION POR PROCESOS - FPAP - VIGENCIA 2014
B2: MUNICIPIO DE IBAGUÉ
B3: FICHA DE PROGRAMACION Y SEGUIMIENTO
B4: SECRETARÍA / ENTIDAD: INFIBAGUE / GRUPO: DIVISION ADMINISTRATIVA
B5: FECHA DE PROGRAMACION: NOVIEMBRE DE 2013 | C5: FECHA DE SEGUIMIENTO: | G5: 2014-08-06 | M5: JULIO - 2014 -
B7: MACROPROCESO: ALMACEN | E7: PROCESO: ALMACEN
B8: SEGURIDAD: SEGURIDAD POLITICA | H8: Objetivos: Administrar de manera Eficaz los inventarios para el logro de los objetivos institucionales | K8: RELACION DE CONTRATOS Y CONVENIOS
B9: PROGRAMA: DINAMIZACION DE LOS ENTES DESCENTRALIZADOS | K9: No | L9: OBJETO | O9: VALOR
B10: NOMBRE DEL PROYECTO POAI: ALMACEN
B11: DEPENDENCIA / GRUPO: DIVISION ADMINISTRATIVA
B12: CODIGO BPPIM:
B13: CODIGO PRESUPUESTAL: RUBRO:
B14: PRINCIPALES ACTIVIDADES | C14: PROG EJEC | D14: UNIDAD DE MEDIDA | E14: CANT. | F14: COSTO TOTAL ( MILES DE PESOS) | G14: FUENTES DE FINANCIACION ( EN MILES DE $) | K14: PROGRAMACION (dd/mm/aa) | M14: INDICADORES DE GESTION
M15: INDICE FISICO | N15: INDICE INVERSION | O15: EFICIENCIA
G16: MPIO | H16: SGP | I16: REGALIAS | J16: OTROS | K16: INICIO | L16: TERMINACION
B17: 1. Mantenimiento del Inventario | C17: P | D17: UNIDAD | E17: 12 | F17: GESTION | K17: 2014-01-02 | L17: 2014-12-31 | M17: =+E18/E17*100 -> 58.33 | O17: =M17 -> 58.33
C18: E | E18: 7
B19: 2. Ejecución Plan de Compras | C19: P | D19: UNIDAD | E19: 12 | F19: GESTION | K19: 2014-01-02 | L19: 2014-12-31 | M19: =+E20/E19*100 -> 58.33 | O19: =M19 -> 58.33
C20: E | E20: 7
B21: 3. Efectuar Inventario físico | C21: P | D21: UNIDAD | E21: 2 | F21: GESTION | K21: 2014-01-02 | L21: 2014-12-31 | M21: =+E22/E21*100 -> 50.00 | O21: =M21 -> 50.00
C22: E | E22: 1
C23: P
C24: E
C25: P
C26: E
B27: TOTAL PLAN DE ACCION | C27: P | M27: =AVERAGE(M17:M22) -> 55.56 | O27: =AVERAGE(O17:O22) -> 55.56
C28: E
B30: METAS DE RESULTADO | C30: METAS DE PRODUCTO | F30: INDICADORES | K30: SECRETARIO DESPACHO / GERENTE
B31: META DE RESULTADO No. 1: | C31: META DE PRODUCTO No. 1: Realizar Mantenimiento mensual al inventario del instituto | F31: No. De Mantenimientos Realizados | I31: P | J31: 12 | K31: NOMBRE: Piedad Consuelo Franco Rios
I32: E | J32: =E18 -> 7
C33: META DE PRODUCTO No. 2: realizar ejecución mensual del Plan de Compras | F33: No. De ejecuciones realizadas | I33: P | J33: 12 | K33: FIRMA
I34: E | J34: =E20 -> 7
C35: META DE PRODUCTO No. 3: Efectuar 2 inventarios físicos al año | F35: No. De inventarios físicos Realizados | I35: P | J35: 2 | K35: NOMBRE JEFE GRUPO: Norma Constanza Agudelo
I36: E | J36: =E22 -> 1
B37: OBSERVACIONES: | K37: FIRMA

Sheet ADMINISTRATIVA
B1: FICHA PLAN DE ACCION POR PROCESOS - FPAP - VIGENCIA 2014
B2: MUNICIPIO DE IBAGUÉ
B3: FICHA DE PROGRAMACION Y SEGUIMIENTO
B4: SECRETARÍA / ENTIDAD: INFIBAGUE / GRUPO: ADMINISTRATIVA
B5: FECHA DE PROGRAMACION: NOVIEMBRE DE 2013 | C5: FECHA DE SEGUIMIENTO: | G5: 2014-08-06 | M5: JULIO - 2014 -
B7: MACROPROCESO: ADMINISTRATIVA | E7: PROCESO: ADMINISTRATIVA
B8: SEGURIDAD: SEGURIDAD POLITICA | H8: Objetivos: Mejorar la calidad de vida, bienestar social y estímulos de los servidores públicos del instituto, fortaleciendo el desempeño laboral y personal del talento humano de Infibagué; con el propósito de lograr mayor compromiso e incremento de la productividad. | K8: RELACION DE CONTRATOS Y CONVENIOS
B9: PROGRAMA: DINAMIZACION DE LOS ENTES DESCENTRALIZADOS | K9: No | L9: OBJETO | O9: VALOR
B10: NOMBRE DEL PROYECTO POAI: ADMINISTRATIVA
B11: DEPENDENCIA / GRUPO: ADMINISTRATIVA
B12: CODIGO BPPIM:
B13: CODIGO PRESUPUESTAL: RUBRO:
B14: PRINCIPALES ACTIVIDADES | C14: PROG EJEC | D14: UNIDAD DE MEDIDA | E14: CANT. | F14: COSTO TOTAL ( MILES DE PESOS) | G14: FUENTES DE FINANCIACION ( EN MILES DE $) | K14: PROGRAMACION (dd/mm/aa) | M14: INDICADORES DE GESTION
M15: INDICE FISICO | N15: INDICE INVERSION | O15: EFICIENCIA
G16: MPIO | H16: SGP | I16: REGALIAS | J16: OTROS | K16: INICIO | L16: TERMINACION
B17: 1. Realizar 4 actividades de capacitación para el personal de la entidad | C17: P | D17: UNIDAD | E17: 4 | F17: 10,000 | G17: x | K17: 2014-01-02 | L17: 2014-12-31 | M17: =+E18/E17*100 -> 225.00 | N17: =+F18/F17*100 -> 0.00 | O17: =+(M17+N17)/2 -> 112.50
C18: E | E18: =2+5+2 -> 9
B19: 2. Socializar el Manual de Inducción y Reinducción | C19: P | D19: UNIDAD | E19: 1 | F19: GESTION | K19: 2014-01-02 | L19: 2014-12-31 | M19: =+E20/E19*100 -> 100.00 | O19: =M19 -> 100.00
C20: E | E20: 1
B21: 3. Elaborar y tramitar oportunamente la planilla de pago a los pensionados | C21: P | D21: UNIDAD | E21: 14 | F21: GESTION | K21: 2014-01-02 | L21: 2014-12-31 | M21: =+E22/E21*100 -> 57.14 | O21: =M21 -> 57.14
C22: E | E22: =1+1+1+1+1+2+1 -> 8
B23: 4. Tramitar oportunamente los pagos relacionados con el personal de planta (Nómina, Aportes, Prestaciones Sociales) | C23: P | D23: UNIDAD | E23: 14 | F23: GESTION | K23: 2014-01-02 | L23: 2014-12-31 | M23: =+E24/E23*100 -> 57.14 | O23: =M23 -> 57.14
C24: E | E24: =(1+1+1+1+1+2)+1 -> 8
B25: 5. Efectuar la supervisión a los contratos asignados por Gerencia | C25: P | D25: UNIDAD | E25: 12 | F25: GESTION | K25: 2014-01-02 | L25: 2014-12-31 | M25: =+E26/E25*100 -> 50.00 | O25: =M25 -> 50.00
C26: E | E26: =(1+1+1+1+1+1) -> 6
B27: 6. Realizar 4 actividades de Bienestar social para el Personal de la entidad | C27: P | D27: UNIDAD | E27: 4 | F27: 5,000 | G27: x | K27: 2014-01-02 | L27: 2014-12-31 | M27: =+E28/E27*100 -> 75.00 | N27: =+F28/F27*100 -> 56.48 | O27: =AVERAGE(M27:N28) -> 65.74
C28: E | E28: =2+1 -> 3 | F28: 2,824
B29: 7. Celebrar la semana de la Salud para los empleados y sus familias. | C29: P | D29: UNIDAD | E29: 1 | F29: 2,000 | G29: x | K29: 2014-01-02 | L29: 2014-12-31 | M29: =+E30/E29*100 -> 0.00 | N29: =+F30/F29*100 -> 0.00 | O29: =AVERAGE(M29:N30) -> 0.00
C30: E
B31: TOTAL PLAN DE ACCION | C31: P | F31: 17,000 | M31: =AVERAGE(M17:M30) -> 80.61 | N31: =AVERAGE(N17,N27,N29) -> 18.83 | O31: =AVERAGE(M31:N32) -> 49.72
C32: E | F32: =+F18+F28+F30 -> 2,824
B34: METAS DE RESULTADO | C34: METAS DE PRODUCTO | F34: INDICADORES | K34: SECRETARIO DESPACHO / GERENTE
B35: META DE RESULTADO No. 1: | C35: META DE PRODUCTO No. 1: Realizar 4 actividades de capacitación para el personal de la entidad | F35: No. De Capacitaciones Realizadas | I35: P | J35: 4 | K35: NOMBRE: Piedad Consuelo Franco Rios
I36: E | J36: =E18 -> 9
C37: META DE PRODUCTO No. 2: Socializar el manual de inducción y reinducción | F37: No. De Socializaciones Realizadas | I37: P | J37: 1
I38: E | J38: =E20 -> 1
C39: META DE PRODUCTO No. 3: Elaborar y tramitar oportunamente la planilla de pago a los pensionados | F39: No. De Planillas elaboradas y tramitadas | I39: P | J39: 14
I40: E | J40: =E22 -> 8
C41: META DE PRODUCTO No. 4: Tramitar oportunamente los pagos relacionados con el personal de planta | F41: No. De Pagos tramitados | I41: P | J41: 14 | K41: FIRMA
I42: E | J42: =E24 -> 8
C43: META DE PRODUCTO No. 5: Efectuar la supervisión a los contratos asignados por Gerencia | F43: No. De Supervisiones efectuadas | I43: P | J43: 12 | K43: NOMBRE JEFE GRUPO: Luz Maria Callejas Ponzón
I44: E | J44: =E26 -> 6
C45: META DE PRODUCTO No. 6: Realizar 4 actividades de Bienestar social para el Personal de la entidad | F45: No. De Actividades de Bienestar Social Realizadas | I45: P | J45: 4
I46: E | J46: =E28 -> 3
C47: META DE PRODUCTO No. 7: Celebrar la semana de la Salud para los empleados y sus familias. | F47: No. De Semanas de la Salud Celebradas | I47: P | J47: 1
I48: E | J48: =E30 -> 0
B49: OBSERVACIONES: | K49: FIRMA

Sheet FINANCIERA
B1: FICHA PLAN DE ACCION POR PROCESOS - FPAP - VIGENCIA 2014
B2: MUNICIPIO DE IBAGUÉ
B3: FICHA DE PROGRAMACION Y SEGUIMIENTO
B4: SECRETARÍA / ENTIDAD: INFIBAGUE / GRUPO: FINANCIERA
B5: FECHA DE PROGRAMACION: NOVIEMBRE DE 2013 | C5: FECHA DE SEGUIMIENTO: | G5: 2014-08-06 | M5: JULIO - 2014 -
B7: MACROPROCESO: FINANCIERA | E7: PROCESO: FINANCIERA
B8: SEGURIDAD: SEGURIDAD POLITICA | H8: Objetivos: Obtener mayor rentabilidad y efectividad en el manejo de los recursos del instituto | K8: RELACION DE CONTRATOS Y CONVENIOS
B9: PROGRAMA: DINAMIZACION DE LOS ENTES DESCENTRALIZADOS | K9: No | L9: OBJETO | O9: VALOR
B10: NOMBRE DEL PROYECTO POAI: FINANCIERA
B11: DEPENDENCIA / GRUPO: FINANCIERA
B12: CODIGO BPPIM:
B13: CODIGO PRESUPUESTAL: RUBRO:
B14: PRINCIPALES ACTIVIDADES | C14: PROG EJEC | D14: UNIDAD DE MEDIDA | E14: CANT. | F14: COSTO TOTAL ( MILES DE PESOS) | G14: FUENTES DE FINANCIACION ( EN MILES DE $) | K14: PROGRAMACION (dd/mm/aa) | M14: INDICADORES DE GESTION
M15: INDICE FISICO | N15: INDICE INVERSION | O15: EFICIENCIA
G16: MPIO | H16: SGP | I16: REGALIAS | J16: OTROS | K16: INICIO | L16: TERMINACION
B17: 1. Realizar los costos bimestrales de cada Unidad de Negocio | C17: P | D17: UNIDAD | E17: 6 | F17: GESTION | K17: 2014-01-02 | L17: 2014-12-31 | M17: =+E18/E17*100 -> 66.67 | O17: =M17 -> 66.67
C18: E | E18: =(1+1+1+1) -> 4
B19: 2. Determinar, Analizar y Mitigar los riesgos que presente la Dirección Financiera | C19: P | D19: UNIDAD | E19: 6 | F19: GESTION | K19: 2014-01-02 | L19: 2014-12-31 | M19: =+E20/E19*100 -> 83.33 | O19: =M19 -> 83.33
C20: E | E20: =(2+1+1+1) -> 5
B21: 3. Realizar Control de Inversión en los portafolios del instituto | C21: P | D21: UNIDAD | E21: 12 | F21: GESTION | K21: 2014-01-02 | L21: 2014-12-31 | M21: =+E22/E21*100 -> 50.00 | O21: =M21 -> 50.00
C22: E | E22: =(2+1+1+1+1) -> 6
B23: 4. Adelantar procesos de cobro Persuasivo para la recuperación de la cartera (Alumbrado Público-Plazas-Inmuebles) | C23: P | D23: UNIDAD | E23: 12 | F23: GESTION | K23: 2014-01-02 | L23: 2014-12-31 | M23: =+E24/E23*100 -> 58.33 | O23: =M23 -> 58.33
C24: E | E24: =(1+1+1+1+1+1+1) -> 7
B25: 5. Optimizar el proceso de facturación, cartera, interfases con tesoreria, presupuesto y contabilidad, generación de reportes, avances e indicadores a través del sistema de información | C25: P | D25: UNIDAD | E25: 12 | F25: GESTION | K25: 2014-01-02 | L25: 2014-12-31 | M25: =+E26/E25*100 -> 58.33 | O25: =M25 -> 58.33
C26: E | E26: =(1+1+1+1+1+1+1) -> 7
B27: 6. Depuración contable | C27: P | D27: UNIDAD | E27: 2 | F27: GESTION | K27: 2014-01-02 | L27: 2014-12-31 | M27: =+E28/E27*100 -> 0.00 | O27: =M27 -> 0.00
C28: E
B29: 7. Análisis presupuestal | C29: P | D29: UNIDAD | E29: 12 | F29: GESTION | K29: 2014-01-02 | L29: 2014-12-31 | M29: =+E30/E29*100 -> 58.33 | O29: =M29 -> 58.33
C30: E | E30: =(1+1+1+1+1+1+1) -> 7
B31: 8. Análisis a los estados financieros | C31: P | D31: UNIDAD | E31: 12 | F31: GESTION | K31: 2014-01-02 | L31: 2014-12-31 | M31: =+E32/E31*100 -> 0.00 | O31: =M31 -> 0.00
C32: E
B33: 9. Control en movimientos bancarios y supervisión | C33: P | E33: 12 | F33: GESTION | K33: 2014-01-02 | L33: 2014-12-31 | M33: =+E34/E33*100 -> 58.33 | O33: =M33 -> 58.33
C34: E | E34: =(1+1+1+1+1+1+1) -> 7
B35: TOTAL PLAN DE ACCION | C35: P | M35: =AVERAGE(M17:M34) -> 48.15 | O35: =M35 -> 48.15
C36: E
B38: METAS DE RESULTADO | C38: METAS DE PRODUCTO | F38: INDICADORES | K38: SECRETARIO DESPACHO / GERENTE
B39: META DE RESULTADO No. 1: | K39: NOMBRE: Piedad Consuelo Franco Rios
K42: FIRMA
K43: NOMBRE JEFE GRUPO: Luz Angélica Carvajal Franco
B45: OBSERVACIONES: | K45: FIRMA

Sheet CTAS ESPECIALES
B1: FICHA PLAN DE ACCION POR PROCESOS - FPAP - VIGENCIA 2014
B2: MUNICIPIO DE IBAGUÉ
B3: FICHA DE PROGRAMACION Y SEGUIMIENTO
B4: SECRETARÍA / ENTIDAD: INFIBAGUE / GRUPO: CUENTAS ESPECIALES
B5: FECHA DE PROGRAMACION: NOVIEMBRE DE 2013 | C5: FECHA DE SEGUIMIENTO: | G5: 2014-08-06 | M5: JULIO - 2014 -
B7: MACROPROCESO: BANFUTURO | E7: PROCESO: BANFUTURO
B8: SEGURIDAD: SEGURIDAD ECONOMICA Y ALIMENTARIA | H8: Objetivos: 1. Promocionar y aumentar la colocación de microcréditos. 2. Contribuir a la generación de empleo del municipio. 3. Generar aumento en la rentabilidad del instituto acorde al dinamismo económico con el portafolio de inversiones | K8: RELACION DE CONTRATOS Y CONVENIOS
B9: PROGRAMA: IBEGUE CENTRO DE NEGOCIOS E INVERSIONES | K9: No | L9: OBJETO | O9: VALOR
B10: NOMBRE DEL PROYECTO POAI: BANFUTURO
B11: DEPENDENCIA / GRUPO: CUENTAS ESPECIALES
B12: CODIGO BPPIM:
B13: CODIGO PRESUPUESTAL: RUBRO:
B14: PRINCIPALES ACTIVIDADES | C14: PROG EJEC | D14: UNIDAD DE MEDIDA | E14: CANT. | F14: COSTO TOTAL ( MILES DE PESOS) | G14: FUENTES DE FINANCIACION ( EN MILES DE $) | K14: PROGRAMACION (dd/mm/aa) | M14: INDICADORES DE GESTION
M15: INDICE FISICO | N15: INDICE INVERSION | O15: EFICIENCIA
G16: MPIO | H16: SGP | I16: REGALIAS | J16: OTROS | K16: INICIO | L16: TERMINACION
B17: 1. Colocación de Microcréditos | C17: P | D17: UNIDAD | E17: 580 | F17: 1,300,000 | G17: x | K17: 2014-01-02 | L17: 2014-12-31 | M17: =+E18/E17*100 -> 39.48 | N17: =+F18/F17*100 -> 52.50 | O17: =+(M17+N17)/2 -> 45.99
C18: E | E18: =(44+31+39+38+39+38) -> 229 | F18: =115480+121900+88370+115200+127900+113600 -> 682,450
B19: 2. Administración de Portafolio | C19: P | D19: UNIDAD | E19: 12 | F19: 42,000 | G19: x | K19: 2014-01-02 | L19: 2014-12-31 | M19: =+E20/E19*100 -> 58.33 | N19: =+F20/F19*100 -> 23.85 | O19: =+(M19+N19)/2 -> 41.09
C20: E | E20: =(1+1+1+1+1+1+1) -> 7 | F20: =(300+2588+1738+1282+295+3323+493) -> 10,019
B21: 3. Rendimientos en operaciones financieras | C21: P | D21: UNIDAD | F21: 400,000 | G21: x | K21: 2014-01-02 | L21: 2014-12-31 | N21: =+F22/F21*100 -> 29.45 | O21: =N21 -> 29.45
C22: E | F22: =(3000+43464+17378+12817+2956+33235+4931) -> 117,781
B23: 4. Promoción de Banfuturo | C23: P | D23: UNIDAD | E23: 60 | F23: GESTION | K23: 2014-01-02 | L23: 2014-12-31 | M23: =+E24/E23*100 -> 48.33 | O23: =M23 -> 48.33
C24: E | E24: =4+4+4+6+7+4 -> 29
B25: 5. Colocación de créditos por libranza | C25: P | D25: UNIDAD | E25: 60 | F25: 150,000 | G25: x | K25: 2014-01-02 | L25: 2014-12-31 | M25: =+E26/E25*100 -> 25.00 | N25: =+F26/F25*100 -> 69.60 | O25: =+(M25+N25)/2 -> 47.30
C26: E | E26: =2+1+5+4+3 -> 15 | F26: =12000+3000+58000+14000+17400 -> 104,400
B27: TOTAL PLAN DE ACCION | C27: P | F27: =+F17+F19+F21+F25 -> 1,892,000 | M27: =AVERAGE(M17,M19,M23,M25) -> 42.79 | N27: =AVERAGE(N17,N19,N21,N25) -> 43.85 | O27: =+(M27+N27)/2 -> 43.32
C28: E
B30: METAS DE RESULTADO | C30: METAS DE PRODUCTO | F30: INDICADORES | K30: SECRETARIO DESPACHO / GERENTE
B31: META DE RESULTADO No. 1: Aumentar la Asignación de Créditos | C31: META DE PRODUCTO No. 1: Colocación de Microcréditos | F31: No. De Créditos Asignados | I31: P | J31: 580 | K31: NOMBRE: Piedad Consuelo Franco Rios
I32: E | J32: =E18 -> 229
C33: META DE PRODUCTO No. 2: Administración de Portafolio | F33: No. De Actividades de Administración Realizadas | I33: P | J33: 12
I34: E | J34: =E20 -> 7
C35: META DE PRODUCTO No. 3: Rendimientos en operaciones financieras | F35: No. Monto en Rendimientos Financieros | I35: P | J35: =F21 -> 400,000 | K35: FIRMA
I36: E | J36: =F22 -> 117,781
C37: META DE PRODUCTO No. 4: Colocación de créditos por libranza | F37: No. De Créditos Asignados | I37: P | J37: 60 | K37: NOMBRE JEFE GRUPO: Elkin Geovanni Llache Suarez
I38: E | J38: =E26 -> 15
B39: OBSERVACIONES: | K39: FIRMA

Sheet PROYECTOS
B1: FICHA PLAN DE ACCION POR PROCESOS - FPAP - VIGENCIA 2014
B2: MUNICIPIO DE IBAGUÉ
B3: FICHA DE PROGRAMACION Y SEGUIMIENTO
B4: SECRETARÍA / ENTIDAD: INFIBAGUE / GRUPO: PROYECTOS Y ESQUEMAS EMPRESARIALES
B5: FECHA DE PROGRAMACION: NOVIEMBRE DE 2013 | C5: FECHA DE SEGUIMIENTO: | G5: 2014-08-06 | M5: JULIO - 2014 -
B7: MACROPROCESO: PROYECTOS | E7: PROCESO: PROYECTOS
B8: SEGURIDAD: SEGURIDAD ECONOMICA Y ALIMENTARIA | H8: Objetivos: Formular y promover proyectos de inversión para fortalecer los esquemas empresariales | K8: RELACION DE CONTRATOS Y CONVENIOS
B9: PROGRAMA: APOYO A APUESTAS PRODUCTIVAS | K9: No | L9: OBJETO | O9: VALOR
B10: NOMBRE DEL PROYECTO POAI: PROYECTOS
B11: DEPENDENCIA / GRUPO: PROYECTOS Y ESQUEMAS EMPRESARIALES
B12: CODIGO BPPIM:
B13: CODIGO PRESUPUESTAL: RUBRO:
B14: PRINCIPALES ACTIVIDADES | C14: PROG EJEC | D14: UNIDAD DE MEDIDA | E14: CANT. | F14: COSTO TOTAL ( MILES DE PESOS) | G14: FUENTES DE FINANCIACION ( EN MILES DE $) | K14: PROGRAMACION (dd/mm/aa) | M14: INDICADORES DE GESTION
M15: INDICE FISICO | N15: INDICE INVERSION | O15: EFICIENCIA
G16: MPIO | H16: SGP | I16: REGALIAS | J16: OTROS | K16: INICIO | L16: TERMINACION
B17: 1. Implementar prueba piloto del proyecto Modernización de Alumbrado Público con Luminarias Ecológicas LED en 3 Barrios de la ciudad | C17: P | D17: UNIDAD | E17: 1 | F17: 50,000 | J17: X | K17: 2014-01-02 | L17: 2014-12-31 | M17: =+E18/E17*100 -> 0.00 | N17: =+F18/F17*100 -> 0.00 | O17: =AVERAGE(M17:N18) -> 0.00
C18: E | E18: 0
B19: 3. Ejecución de la tercera fase de la Modernización del Coliseo de Ferias | C19: P | D19: UNIDAD | E19: 1 | F19: 20,000 | G19: X | K19: 2014-01-02 | L19: 2014-12-31 | M19: =+E20/E19*100 -> 100.00 | N19: =+F20/F19*100 -> 175.00 | O19: =AVERAGE(M19:N20) -> 137.50
C20: E | E20: 1 | F20: 35,000
B21: 4. Buscar Aliado Estratégico de producción para la Fábrica de Pupitres | C21: P | D21: UNIDAD | E21: 1 | F21: 1,000 | K21: 2014-01-02 | L21: 2014-12-31 | M21: =+E22/E21*100 -> 0.00 | N21: =+F22/F21*100 -> 0.00 | O21: =AVERAGE(M21:N22) -> 0.00
C22: E | E22: 0
B23: 5. Implementar Primera Fase del Proyecto "Basura en Oro" en una Plaza de Mercado | C23: P | D23: UNIDAD | E23: 1 | F23: 15,000 | J23: x | K23: 2014-01-02 | L23: 2014-12-31 | M23: =+E24/E23*100 -> 0.00 | N23: =+F24/F23*100 -> 40.00 | O23: =AVERAGE(M23:N24) -> 20.00
C24: E | E24: 0 | F24: =5000+1000 -> 6,000
B25: 6. Organización y Logistica de 10 eventos | C25: P | D25: UNIDAD | E25: 10 | F25: GESTION | K25: 2014-01-02 | L25: 2014-12-31 | M25: =+E26/E25*100 -> 70.00 | O25: =M25 -> 70.00
C26: E | E26: =5+2 -> 7
B27: 7. Proceso de sensibilización y direccionamiento acorde a la iniciativa de los comerciantes de Chapicentro | C27: P | D27: UNIDAD | E27: 1 | F27: 50,000 | J27: x | K27: 2014-01-02 | L27: 2014-12-31 | M27: =+E28/E27*100 -> 100.00 | N27: =+F28/F27*100 -> 64.00 | O27: =AVERAGE(M27:N28) -> 82.00
C28: E | E28: 1 | F28: =10000+22000 -> 32,000
B29: 8. Administración y Mantenimiento de Inmuebles | C29: P | D29: UNIDAD | E29: 12 | F29: 20,000 | G29: x | J29: x | K29: 2014-01-02 | L29: 2014-12-31 | M29: =+E30/E29*100 -> 58.33 | N29: =+F30/F29*100 -> 0.00 | O29: =AVERAGE(M29:N30) -> 29.17
C30: E | E30: 7
B31: 9. Porcentaje de ajuste 2 puntos por encima del IPC a Canones de arrendamiento de Inmuebles | C31: P | D31: PORCENTAJ | E31: 3.94 | F31: GESTION | K31: 2014-01-02 | L31: 2014-12-31 | M31: =+E32/E31*100 -> 154.82 | O31: =AVERAGE(M31:N32) -> 154.82
C32: E | E32: 6.1
B33: TOTAL PLAN DE ACCION | C33: P | M33: =AVERAGE(M17:M32) -> 60.39 | N33: =AVERAGE(N17:N32) -> 46.50 | O33: =AVERAGE(M33:N34) -> 53.45
C34: E
B36: METAS DE RESULTADO | C36: METAS DE PRODUCTO | F36: INDICADORES | K36: SECRETARIO DESPACHO / GERENTE
B37: META DE RESULTADO No. 1: Formular e Implementar 4 Proyectos | C37: META DE PRODUCTO No. 1: Implementar prueba piloto del proyecto Modernización de Alumbrado Público con Luminarias Ecológicas LED en 3 Barrios de la ciudad | F37: No. De Pruebas Piloto Implementadas | I37: P | J37: 1 | K37: NOMBRE: Piedad Consuelo Franco Rios
I38: E | J38: =E18 -> 0
C39: META DE PRODUCTO No. 2: Ejecución de la tercera fase de la Modernización del Coliseo de Ferias | F39: No. De fases Ejecutadas | I39: P | J39: 1
I40: E | J40: =E20 -> 1
C41: META DE PRODUCTO No. 3: Buscar Aliado Estratégico de producción para la Fábrica de Pupitres | F41: No. De Acuerdos Puestos en Marcha | I41: P | J41: 1 | K41: NOMBRE JEFE GRUPO: Paulo Emilio Salas Calpa
I42: E | J42: =E22 -> 0
C43: META DE PRODUCTO No. 4: Implementar Primera Fase del Proyecto "Basura en Oro" en una Plaza de Mercado | F43: No. De Fases Implementadas | I43: P | J43: 1
I44: E | J44: =E24 -> 0
B45: OBSERVACIONES: | K45: FIRMA
